Cogmind - Beta 17.1 @@@ ROGUE MODE // 2026.09.14 @ 02:01:10 Player: Somberlain Result: Destroyed by RC-BAM(R) with Subdweller Laser Performance ------------- Evolutions (0) 0 Regions Visited (3) 600 Robots Destroyed (31) 155 Value Destroyed (933) 933 Prototype IDs (1) 20 Alien Tech Used (0) 0 Bonus (0) 0 TOTAL SCORE: 1708 Bonus ------- None Cogmind --------- Core Integrity 0/250 Matter 265/300 Energy 100/100 System Corruption 0% Temperature Cool (6) Movement Rolling (110) Location -10/Subcaves Parts ------- > --- POWER (1) -------- (None) > --- PROPULSION (2) --- Subdweller Monowheel Subdweller Monowheel > --- UTILITY (2) ------ Medium Storage Unit Core Shielding > --- WEAPON (2) ------- Battle Rifle Battle Rifle > --- INVENTORY (10) --- Makeshift Leg Heat Sink Scrap Shield Hacking Suite Improved EM Shotgun Improved EM Shotgun Datajack Mining Laser Peak State ------------ > --- POWER ------------ Light Nuclear Core > --- PROPULSION ------- Aluminum Leg Aluminum Leg > --- UTILITY ---------- Small Storage Unit Structural Scanner > --- WEAPON ----------- Improved EM Shotgun Improved EM Shotgun > --- INVENTORY -------- Ion Engine Terrain Scanner Core Shielding Hacking Suite Improved EM Shotgun Improved EM Shotgun Particle Gun Grenade Launcher [Rating: 14] Favorites ----------- Power Ion Engine Engine Ion Engine Power Core Light Nuclear Core Propulsion Aluminum Leg Treads Improved Treads Leg Aluminum Leg Wheel Subdweller Monowheel Utility Core Shielding Device Structural Scanner Storage Medium Storage Unit Protection Core Shielding Weapon Improved EM Shotgun Energy Gun Improved EM Shotgun Ballistic Gun Battle Rifle Launcher Grenade Launcher Special Weapon Mining Laser Build | -11 -10 -10 -10 ------- Run | Yrd Mat Min Sub Slots Evolved . | . . . . Power . | . . . . Propulsion . | . . . . Utility . | . . . . Weapon . | . . . . Parts Attached 36 | 6 16 2 12 Power 3 | 1 2 . . Engine 2 | 1 1 . . Core 1 | . 1 . . Reactor . | . . . . Propulsion 12 | 2 4 1 5 Treads 2 | . 2 . . Leg 6 | 2 2 1 1 Wheel 4 | . . . 4 Hover . | . . . . Flight . | . . . . Utility 4 | 1 2 1 . Device 1 | . 1 . . Storage 2 | 1 . 1 . Processor . | . . . . Hackware . | . . . . Protection 1 | . 1 . . Artifact . | . . . . Weapon 17 | 2 8 . 7 Energy Gun 7 | 1 4 . 2 Energy Cannon . | . . . . Ballistic Gun 7 | 1 2 . 4 Ballistic Cannon . | . . . . Launcher 2 | . 2 . . Special Weapon 1 | . . . 1 Impact Weapon . | . . . . Slashing Weapon . | . . . . Piercing Weapon . | . . . . Special Melee Weapon . | . . . . Unidentified Prototypes 1 | . 1 . . Parts Lost 11 | . 4 . 7 Power 3 | . 2 . 1 Propulsion 3 | . . . 3 Utility . | . . . . Weapon 5 | . 2 . 3 Highest Loss Streak 2 | . 1 . 2 To Critical Strikes . | . . . . Average Backups 7 | . 4 7 7 Power . | . . . . Propulsion . | . . . . Utility 2 | . 1 2 2 Weapon 3 | . 2 5 4 Tool/Special . | . . . . Unused Backups 6 | . 2 . 4 Power . | . . . . Propulsion . | . . . . Utility 5 | . 2 . 3 Weapon . | . . . . Tool/Special 1 | . . . 1 Average Slot Usage (%) 86 | . 88 97 84 Engine 6 | . 5 11 5 Leg 16 | . 26 28 10 Wheel 7 | . . . 11 Device 1 | . 8 . . Storage 14 | . 14 14 14 Protection 11 | . 2 14 14 Energy Gun 9 | . 16 26 4 Ballistic Gun 12 | . 9 . 15 Special Weapon 3 | . . . 6 Peak Build Rating 14 | 6 14 12 13 Average Rating 9 | 4 8 11 9 On Entrance 6 | . 6 9 12 Avg Prop Armor Cover (%) 5 | . . . 5 Naked Turns . | . . . . Heaviest Build 24 | 12 17 22 24 Greatest Support 46 | 20 46 20 40 Greatest Overweight (x) 7 | . 4 1 7 Average Overweight (x) . | . . . . Largest Inventory Capacity 10 | 8 8 10 10 Average Capacity 9 | 7 8 9 10 Most Carried 10 | . 8 8 10 Average Carried 7 | . 4 7 8 Final Capacity 10 | 8 8 10 10 Final Carried 9 | . 8 8 9 Class Distribution -------------------- 91% | Mutant 6% | Derelict-Mutant Dominant Class ---------------- Mutant | -10/Materials Mutant | -10/Mines Mutant | -10/Subcaves Resources | -11 -10 -10 -10 ----------- Run | Yrd Mat Min Sub Matter Collected 926 | 156 344 200 226 Remotely . | . . . . Salvage Created 1089 | . 528 263 298 Parts 64 | . 27 11 26 Haulers Intercepted . | . . . . Recyclers Shooed . | . . . . Parts Field Recycled . | . . . . Retrieved Matter . | . . . . Parts Self-Destructed 18 | . . . 18 Prevented 1 | . . . 1 Parts Restored . | . . . . Kills | -11 -10 -10 -10 ------- Run | Yrd Mat Min Sub Combat Hostiles Destroyed 26 | . 10 6 10 Guns 19 | . 6 4 9 AOE 6 | . 4 2 . Classes Destroyed 7 | . 5 . 2 Builder 2 | . 2 . . Recycler 1 | . 1 . . Operator 1 | . 1 . . Watcher 1 | . 1 . . Swarmer 6 | . . . 6 Grunt 16 | . 10 6 . Subdweller 4 | . . . 4 Best Kill Streak 7 | . 7 2 3 Combat Bots Only 4 | . 4 2 3 Max Kills in Single Turn 2 | . 2 2 1 Gunslinging 1 | . 1 . . Exploded 2 | . 2 2 . Melee . | . . . . Uniques/NPCs Destroyed . | . . . . Combat | -11 -10 -10 -10 -------- Run | Yrd Mat Min Sub Hostile Shots Fired 133 | . 47 12 74 Missed 31 | . 13 5 13 Hits 102 | . 34 7 61 Projectile 102 | . 34 7 61 Critical Strikes 1 | . . . 1 Damage Taken 1580 | . 622 96 862 Core 250 | . 125 25 100 Absorbed by Shields . | . . . . Redirected to Shielding 25 | . . 5 20 Core Remaining (%) 100 | 100 . . . Volleys Fired 114 | . 48 9 57 Largest 2 | . 2 2 2 Hottest 100 | . 90 90 100 Shots Fired 185 | . 80 15 90 Gun 155 | . 72 13 70 Cannon . | . . . . Launcher 10 | . 8 2 . Special 20 | . . . 20 Kinetic 70 | . 25 . 45 Thermal 49 | . 29 . 20 Explosive 10 | . 8 2 . Electromagnetic 56 | . 18 13 25 Robot Hit Streak 22 | . 6 8 22 Robot Miss Streak 4 | . 4 2 3 Penetration Max . | . . . . Secondary Targets 4 | . 2 1 1 Max Gunslinging Chain 1 | . 1 1 1 Shots Hit Robots 105 | . 42 12 51 Core Hits 59 | . 29 15 15 Critical Kills 1 | . . . 1 Critical Parts Destroyed 2 | . 1 . 1 Critical Strikes 4 | . 2 . 2 Burn 1 | . 1 . . Destroy 3 | . 1 . 2 Melee Attacks . | . . . . Impact . | . . . . Slashing . | . . . . Piercing . | . . . . Sneak Attacks . | . . . . Combat Hostiles . | . . . . Follow-up Attacks . | . . . . Damage Inflicted 2159 | . 1140 275 744 Guns 1466 | . 559 163 744 Cannons . | . . . . Explosions 693 | . 581 112 . Melee . | . . . . Ramming . | . . . . Kinetic 701 | . 235 . 466 Thermal 411 | . 411 . . Explosive 469 | . 357 112 . Electromagnetic 578 | . 137 163 278 Impact . | . . . . Slashing . | . . . . Piercing . | . . . . Highest Corruption . | . . . . Average Corruption . | . . . . Corruption Purged . | . . . . Corruption Blocked . | . . . . Overload Shots . | . . . . Overflow Damage 44 | . 44 . . Projectiles . | . . . . Explosions 44 | . 44 . . Melee . | . . . . Knockbacks . | . . . . Impact . | . . . . Kinetic . | . . . . Secondary . | . . . . Self-Inflicted Damage 106 | . 106 . . Shots 3 | . 3 . . Rammed . | . . . . Targets Rammed . | . . . . Kicked . | . . . . Crushed . | . . . . Highest Temperature 216 | . 216 124 . Average Temperature 67 | . 71 53 . Received Heat Transfer 363 | . 258 51 54 Siege Activations . | . . . . Martial Activations . | . . . . Shielding Activations . | . . . . Robots Disrupted . | . . . . Combat Hostiles . | . . . . Robots Corrupted 1 | . . . 1 Combat Hostiles 1 | . . . 1 Parts Fried 2 | . . . 2 Impact Corruptions . | . . . . Robots Melted . | . . . . Combat Hostiles . | . . . . Parts Melted . | . . . . Heat Transferred 843 | . 843 . . Parts Sabotaged . | . . . . Parts Stolen . | . . . . Parts Stripped . | . . . . Power Chain Reactions 2 | . 2 . . Alert | -11 -10 -10 -10 ------- Run | Yrd Mat Min Sub Maximum Alert Level 1 | . 1 . . Low Security (%) 99 | 100 99 100 . Level 1 . | . . . . Level 2 . | . . . . Level 3 . | . . . . Level 4 . | . . . . Level 5 . | . . . . High Security . | . . . . Max Security . | . . . . Peak Influence 205 | . 205 126 . Initial 43 | . . 43 . Average 77 | . 94 56 . Influence Increases 850 | . 392 163 295 Destroy 0b10 Robot/C 440 | . 200 120 120 Destroy 0b10 Robot/NC 25 | . 25 . . Destroy Leader 92 | . 52 30 10 Successful Hack 8 | . 8 . . Disable Machine 45 | . 45 . . Destroy Structure 75 | . 62 13 . Lose Combat Pursuer 165 | . . . 165 Influence Decreases 850 | . 279 276 295 Entered New Map 70 | . . 70 . Time Decay 700 | . 249 206 245 Lost Part 80 | . 30 . 50 Squads Dispatched 2 | . 2 . . Investigation 1 | . 1 . . Extermination . | . . . . Reinforcement 1 | . 1 . . Assault . | . . . . Garrison . | . . . . Intercept . | . . . . Searches Triggered . | . . . . Construction Impeded . | . . . . Haulers Reinforced . | . . . . Active Scanning Responses . | . . . . Cargo Convoy Interrupts . | . . . . Stealth | -11 -10 -10 -10 --------- Run | Yrd Mat Min Sub Distress Signals . | . . . . Communications Jammed . | . . . . Distress Signals . | . . . . Times Spotted 40 | . 17 6 17 Peak Tracking Total 5 | . 5 2 4 Tactical Retreats 7 | . . . 7 Traps | -11 -10 -10 -10 ------- Run | Yrd Mat Min Sub Traps Triggered 4 | . 4 . . Indirectly . | . . . . Trap Hack Attempts . | . . . . Triggered . | . . . . Disarmed . | . . . . Reprogrammed . | . . . . Reused . | . . . . Traps Extracted . | . . . . Installed . | . . . . Triggered . | . . . . Machines | -11 -10 -10 -10 ---------- Run | Yrd Mat Min Sub Machines Disabled 3 | . 3 . . Max in Single Turn 1 | . 1 . . Machines Repaired . | . . . . Machines Dismantled . | . . . . Machines Sabotaged . | . . . . Overloaded Fab Kills . | . . . . Hacking | -11 -10 -10 -10 --------- Run | Yrd Mat Min Sub Machines Accessed 6 | . 5 . 1 Terminals 5 | . 5 . . Fabricators . | . . . . Repair Stations . | . . . . Recycling Units . | . . . . Scanalyzers . | . . . . Garrison Access . | . . . . Total Hacks 10 | . 6 . 4 Successful 7 | . 3 . 4 Failed 3 | . 3 . . Catastrophic 1 | . 1 . . Database Lockouts . | . . . . Manual 4 | . 4 . . Terminals 6 | . 6 . . Fabricators . | . . . . Repair Stations . | . . . . Recycling Units . | . . . . Scanalyzers . | . . . . Garrison Access . | . . . . Terminal Hacks 7 | . 3 . 4 Record 4 | . . . 4 Branch Access Points 1 | . 1 . . Hauler Manifests 1 | . 1 . . Registered Components 1 | . 1 . . Fabricator Hacks . | . . . . Repair Station Hacks . | . . . . Recycling Unit Hacks . | . . . . Scanalyzer . | . . . . Garrison Access Hacks . | . . . . Unauthorized Hacks . | . . . . Terminals . | . . . . Fabricators . | . . . . Repair Stations . | . . . . Recycling Units . | . . . . Scanalyzers . | . . . . Garrison Access . | . . . . Data Cores Recovered . | . . . . Used . | . . . . Hacking Detections 3 | . 3 . . Full Trace Events . | . . . . Feedback Events . | . . . . Feedback Blocked . | . . . . Robot Schematics Acquired . | . . . . Robots Built . | . . . . Authchips . | . . . . Time . | . . . . Total Robot Build Rating . | . . . . Part Schematics Acquired . | . . . . Parts Built . | . . . . Authchips . | . . . . Time . | . . . . Total Part Build Rating . | . . . . Part Studies Acquired . | . . . . Parts Repaired . | . . . . Time . | . . . . Parts Recycled . | . . . . Recycled Matter . | . . . . Retrieved Matter . | . . . . Retrieved Components . | . . . . Parts Scanalyzed . | . . . . Part Schematics Acquired . | . . . . Parts Damaged . | . . . . Bothacking | -11 -10 -10 -10 ------------ Run | Yrd Mat Min Sub Used RIF Installer . | . . . . Robots Hacked . | . . . . Non-combat . | . . . . Combat . | . . . . Robot Hacks Applied . | . . . . Relay Couplers Released . | . . . . Fabnet Peak Effective % . | . . . . Robots Rewired . | . . . . Allies Hacked . | . . . . Hacks Repelled . | . . . . Allies | -11 -10 -10 -10 -------- Run | Yrd Mat Min Sub Total Allies . | . . . . Largest Group . | . . . . Highest-Rated Group . | . . . . Highest-Rated Ally . | . . . . Total Orders . | . . . . Ally Attacks . | . . . . Total Damage . | . . . . Kills . | . . . . Allies Corrupted . | . . . . Allies Melted . | . . . . Intel | -11 -10 -10 -10 ------- Run | Yrd Mat Min Sub Active Infowar (turns) 479 | . 479 . . Structural 479 | . 479 . . Robot Analysis Total . | . . . . Derelict Logs Recovered 4 | . . 2 2 Drone Launches . | . . . . Drone Recoveries . | . . . . Exploration | -11 -10 -10 -10 ------------- Run | Yrd Mat Min Sub Turns Passed 3860 | 64 822 475 2499 Spaces Moved 2339 | 48 471 269 1551 Core 146 | 2 1 . 143 Treads 12 | . 12 . . Legs 1296 | 46 458 269 523 Wheels 885 | . . . 885 Hover . | . . . . Flight . | . . . . Fastest Speed 50 | 50 120 120 110 Average Speed 138 | 117 121 148 141 Slowest Speed 400 | 120 250 190 400 Overloaded Moves . | . . . . Propulsion Burnouts . | . . . . Robots Hopped . | . . . . Potential Cave-ins . | . . . . Cave-ins Triggered . | . . . . Exploration Rate (%) 48 | 3 69 52 68 Regions Visited 3 Branch Regions 2 Pre-discovered Areas 2 | . . 1 1 Known Exits Taken 1 | . 1 . . Unknown Exits Taken 2 | 1 . 1 . Scrap Searched 8 | . . 2 6 Spaces Dug . | . . . . Terrain Destroyed 94 | . 78 16 . Melee . | . . . . Projectile . | . . . . AOE 94 | . 78 16 . Terrain Rammed . | . . . . Walls Destroyed . | . . . . Machines Disabled . | . . . . Actions | -11 -10 -10 -10 --------- Run | Yrd Mat Min Sub Total 2740 | 53 634 329 1724 Wait 194 | . 66 47 81 Move 2336 | 47 470 268 1551 Hop . | . . . . Pick Up 23 | . 16 . 7 Fast Attach 20 | 6 9 . 5 Attach 12 | . 4 1 7 Detach 3 | . . . 3 Swap 21 | . 11 3 7 Drop 17 | . 10 1 6 Fire 114 | . 48 9 57 Melee . | . . . . Ram . | . . . . Kick . | . . . . Crush . | . . . . Escape Stasis . | . . . . Rewire . | . . . . Trap . | . . . . Miscellaneous . | . . . . Route ------- -11/Scrapyard -10/Materials (discovered 4 exits: [*Mat x2] / *Min / *Sub) -10/Mines (discovered 2 exits: [*Mat] / *Sub) -10/Subcaves (discovered 2 exits: *Mat x2) History --------- Turn | Location | Event 27 | -11/Scrapyard | Discovered new exit (range 16) 65 | -11/Scrapyard | Entered Materials 347 | -10/Materials | Build established: Mutant 417 | -10/Materials | Discovered new exit (range 7) 560 | -10/Materials | Identified exit to Mines 684 | -10/Materials | Discovered new exit (range 15) 688 | -10/Materials | Discovered new exit (range 9) 887 | -10/Materials | Entered Mines 923 | -10/Mines | Core integrity fell below 50% 1006 | -10/Mines | Learned location of Storage (-8) 1208 | -10/Mines | Discovered new exit (range 14) 1354 | -10/Mines | Discovered new exit (range 3) 1362 | -10/Mines | Entered Subcaves 1417 | -10/Subcaves | Identified exit to Materials 1446 | -10/Subcaves | Learned Materials terminal intel 1477 | -10/Subcaves | A swath of the cavern ceiling suddenly collapsed 1528 | -10/Subcaves | A swath of the cavern ceiling suddenly collapsed 1605 | -10/Subcaves | Discovered exit to Materials (range 15) 1749 | -10/Subcaves | Shifting Twisted Machinery released Sub. Machine Gun 1754 | -10/Subcaves | Shifting Twisted Machinery released Sub. Machine Gun 2346 | -10/Subcaves | Core integrity fell below 20% 2878 | -10/Subcaves | Visited Clippyterm 2882 | -10/Subcaves | Learned Factory trap positions 2882 | -10/Subcaves | Learned Factory fabricator intel 3039 | -10/Subcaves | Learned location of Zion (-7) 3039 | -10/Subcaves | Met a Zionite searching for "candidates" 3861 | -10/Subcaves | Destroyed by RC-BAM(R) with Subdweller Laser Last Messages --------------- 03597_ Acquired 45 matter. 03602_ Acquired Sub. Monowheel. 03604_ Acquired 10 matter. 03622_ Searching scrap... 03622_ Found Battle Rifle. 03622_ Found Mak. Flight Unit. 03622_ Found 50 Matter. 03625_ Searching scrap... 03625_ Found Mak. Leg. 03625_ Found 52 Matter. 03627_ Acquired Mak. Leg. 03628_ Acquired 10 matter. 03647_ Searching scrap... 03647_ Found Sub. Monowheel. 03647_ Found 68 Matter. 03649_ Acquired Sub. Monowheel. 03651_ Acquired Mak. Leg. 03654_ Acquired 5 matter. 03827_ Sub. Monowheel shoots sparks and powers down. Map ----- +----------------------------------------------------+ | ?????????????????????????????????????????????????? | | ?????????????????????????????????????????????????? | | ?????????????????????????????????????????????????? | | ?????????????????????????????????????????????????? | | ?????????????????????????????????????????????????? | | ?????????????????????????????????????????????????? | | ?????????????????????????????????????????????????? | | ?????????????????????????????????????????????????? | | ?????????????????????????????????????????????????? | | ?????????????????????????????????????????????????? | | ?????????????????????????????????????????????????? | | ?????????????????????????????????????????????????? | | ?????????????????????????????????????????????????? | | ?????????????????????????????????????????????????? | | ?????????????????????????????????????????????????? | | ?????????????????????????????????????????????????? | | ?????????????????????????????????????????????????? | | ?????????????????????????????????????????????????? | | ?????????????????????????????????????????????????? | | ?????????????????????????????????????????????????? | | ?????????????????????????????????????????????????? | | ????????????????????????????????? #??????????????? | | ?????????????????????########## #??????????????? | | ?????????#########??## R R ### ????????? | | ???##????# #### ????????? | | ### #????## ## @ ????????? | | ## #????## ## ????????? | | #??### ## ## ????????? | | # ##??# ## ## ### ## ?????????? | | # ##??## ### ## #### #?? #?????????? | | #???# #?# ## #??##??? ###??????????? | | #???# ### ## ##???????? ##????????????? | | ####??## ## #?????????? ##?????????????? | | ##???## ### # ##??????????????????????????? | | ##### #?#######???????????????????????????? | | ### #???????????????????????????????????? | | ## #### ##???????????????????????????????????? | | ## #### #???????????????????????????????????? | | # ### ###?????????????????????????????????? | | ## ###???????????????????????????????? | | ##??????????????????????????????? | | ##?????????????????????????????? | | #### ####??????????????????????????? | | #??# ## #??????????????????????????? | | ##??# ## #??????????????????????????? | | #???### ##?####?###?????????????????? | | ##????### #### #?# ##????????????????? | | #??????# ### #####????????????? | | ##????## ## # #????????????? | | ####?# ## #????????????? | +----------------------------------------------------+ Best States ------------- Heat Dissipation 25 Energy Generation 14 Energy Capacity 250 Matter Stores 300 Matter Capacity 300 Sight Range 16 Terrain Scan Density 10 Core Shielding 20 Evasion (%) 55 Recoil Reduction 2 Item Schematics ----------------- None Robot Schematics ------------------ None Fabricated ------------ Nothing Repaired ---------- Nothing Studied --------- None Alien Tech Used ----------------- None Achievements -------------- None Challenges ------------ None Game ------ Seed ControlWaveTransmogrifier Manual? 0 Play Time 00:16:29 Cumulative 109.7 hours Start 2026.09.14 @ 01:45:12 End 2026.09.14 @ 02:01:10 Sessions 1 Manual Loads 0 Difficulty Rogue Special Mode None Game No. 126 Rogue 126 Adventurer 0 Explorer 0 Win Type - Total 0 Types 0/0/0/0/0/0/0/0/0/0 Lore% 45 Gallery% 52 Achievement% 42 Wizard Run 0 Options --------- Layout 1 ASCII 0 Keyboard 0 Movement Mouse Keybinds 0 Fullscreen 2 Font 24/Smallcaps Map View 50x35 Zoom Use 0% Tactical HUD 1 Map Filters NONE Filters NONE Steam 1 RUN: 7a445051-4bf9-4b07-a1df-b5d21763fb7f